Cogmind - Beta 11.1 @@@ ROGUE MODE // 2022.04.25 @ 18:27:03 Player: Infomantis Result: Destroyed by G-47 Trooper with Particle Gun Performance ------------- Evolutions (0) 0 Regions Visited (2) 400 Robots Destroyed (13) 65 Value Destroyed (148) 148 Prototype IDs (4) 80 Alien Tech Used (0) 0 Bonus (0) 0 TOTAL SCORE: 693 Bonus ------- None Cogmind --------- Core Integrity 0/250 Matter 290/300 Energy 124/125 System Corruption 0% Temperature Cool (27) Movement Rolling (80) Location -10/Mines Parts ------- > --- POWER (1) -------- Light Ion Engine > --- PROPULSION (2) --- Light Treads Wheel > --- UTILITY (2) ------ Small Storage Unit Armor Integrity Analyzer > --- WEAPON (2) ------- EM Pulse Gun > --- INVENTORY (8) ---- Flexi-carbon Leg Compact Wheel Hacking Suite Datajack Mining Laser Peak State ------------ > --- POWER ------------ Light Ion Engine > --- PROPULSION ------- Aluminum Leg Aluminum Leg > --- UTILITY ---------- Small Storage Unit Improved Terrain Scanner > --- WEAPON ----------- Medium Laser Light Assault Rifle > --- INVENTORY -------- Light Ion Engine Light Treads Wheel Compact Wheel Hacking Suite EM Pulse Gun Datajack Mining Laser [Rating: 10] Favorites ----------- Power Light Ion Engine Engine Light Ion Engine Propulsion Aluminum Leg Treads Light Treads Leg Aluminum Leg Wheel Wheel Utility Small Storage Unit Device Seismic Detector Storage Small Storage Unit Processor Armor Integrity Analyzer Weapon Light Assault Rifle Energy Gun Medium Laser Ballistic Gun Light Assault Rifle Build | -11 -10 -10 ------- Run | Scr Mat Min Slots Evolved . | . . . Power . | . . . Propulsion . | . . . Utility . | . . . Weapon . | . . . Parts Attached 17 | 9 3 5 Power 3 | 1 1 1 Engine 3 | 1 1 1 Core . | . . . Reactor . | . . . Propulsion 4 | 2 . 2 Treads 1 | . . 1 Leg 2 | 2 . . Wheel 1 | . . 1 Hover . | . . . Flight . | . . . Utility 5 | 3 1 1 Device 3 | 2 1 . Storage 1 | 1 . . Processor 1 | . . 1 Hackware . | . . . Protection . | . . . Artifact . | . . . Weapon 5 | 3 1 1 Energy Gun 3 | 1 1 1 Energy Cannon . | . . . Ballistic Gun 2 | 2 . . Ballistic Cannon . | . . . Launcher . | . . . Special Weapon . | . . . Impact Weapon . | . . . Slashing Weapon . | . . . Piercing Weapon . | . . . Special Melee Weapon . | . . . Unidentified Prototypes . | . . . Parts Lost 7 | . 1 6 Power 1 | . . 1 Propulsion 2 | . . 2 Utility 2 | . 1 1 Weapon 2 | . . 2 Highest Loss Streak 6 | . 1 6 To Critical Strikes . | . . . Average Slot Usage (%) 89 | . 94 74 Engine 13 | . 14 10 Treads 2 | . . 8 Leg 23 | . 28 11 Device 8 | . 9 4 Storage 14 | . 14 14 Processor 1 | . . 4 Energy Gun 8 | . 5 14 Ballistic Gun 17 | . 22 3 Naked Turns . | . . . Heaviest Build 12 | 12 12 12 Greatest Support 20 | 20 20 20 Greatest Overweight (x) 2 | 2 . . Average Overweight (x) . | . . . Largest Inventory Capacity 8 | 8 8 8 Average Capacity 7 | 7 8 8 Most Carried 8 | 8 8 8 Average Carried 6 | 5 7 6 Final Capacity 8 | 8 8 8 Final Carried 8 | 8 8 5 Class Distribution -------------------- 100% | Mutant Dominant Class ---------------- Mutant | -10/Materials Mutant | -10/Mines Resources | -11 -10 -10 ----------- Run | Scr Mat Min Matter Collected 443 | 301 112 30 Remotely . | . . . Salvage Created 306 | 85 161 60 Parts 37 | 13 24 . Haulers Intercepted . | . . . Recyclers Shooed 2 | . 2 . Parts Field Recycled . | . . . Retrieved Matter . | . . . Parts Self-Destructed . | . . . Prevented . | . . . Kills | -11 -10 -10 ------- Run | Scr Mat Min Combat Hostiles Destroyed 12 | . 8 4 Guns 12 | . 8 4 Classes Destroyed 5 | 1 3 1 Tunneler 4 | 4 . . Operator 1 | . 1 . Swarmer 7 | . 7 . Grunt 1 | . 1 . Assembled 4 | . . 4 Best Kill Streak 4 | 2 4 3 Combat Bots Only 4 | . 4 3 Max Kills in Single Turn 1 | 1 1 1 Gunslinging . | . . . Exploded . | . . . Melee . | . . . Uniques/NPCs Destroyed . | . . . Combat | -11 -10 -10 -------- Run | Scr Mat Min Damage Taken 835 | . 283 552 Core 261 | . 59 202 Absorbed by Shields . | . . . Core Remaining (%) 100 | 100 . . Volleys Fired 71 | 19 35 17 Largest 2 | 2 2 2 Hottest 70 | 60 70 70 Shots Fired 130 | 38 70 22 Gun 130 | 38 70 22 Cannon . | . . . Launcher . | . . . Special . | . . . Kinetic 104 | 35 64 5 Thermal 12 | . 6 6 Explosive . | . . . Electromagnetic 14 | 3 . 11 Robot Hit Streak 8 | 6 5 8 Robot Miss Streak 5 | 3 5 5 Penetration Max . | . . . Secondary Targets . | . . . Shots Hit Robots 69 | 21 35 13 Core Hits 32 | 8 16 8 Critical Kills . | . . . Critical Parts Destroyed 1 | . 1 . Critical Strikes 2 | . 2 . Burn 1 | . 1 . Destroy 1 | . 1 . Melee Attacks . | . . . Impact . | . . . Slashing . | . . . Piercing . | . . . Sneak Attacks . | . . . Combat Hostiles . | . . . Follow-up Attacks . | . . . Damage Inflicted 630 | 168 306 156 Guns 630 | 168 306 156 Cannons . | . . . Explosions . | . . . Melee . | . . . Ramming . | . . . Kinetic 451 | 168 267 16 Thermal 91 | . 39 52 Explosive . | . . . Electromagnetic 88 | . . 88 Impact . | . . . Slashing . | . . . Piercing . | . . . Highest Corruption . | . . . Average Corruption . | . . . Corruption Purged . | . . . Corruption Blocked . | . . . Overload Shots . | . . . Overflow Damage . | . . . Projectiles . | . . . Explosions . | . . . Melee . | . . . Knockbacks . | . . . Impact . | . . . Kinetic . | . . . Secondary . | . . . Self-Inflicted Damage . | . . . Shots . | . . . Rammed . | . . . Targets Rammed . | . . . Kicked . | . . . Crushed . | . . . Highest Temperature 45 | 20 40 45 Average Temperature 18 | 15 16 24 Received Heat Transfer 57 | . 30 27 Siege Activations . | . . . Robots Corrupted . | . . . Combat Hostiles . | . . . Parts Fried . | . . . Impact Corruptions . | . . . Robots Melted . | . . . Combat Hostiles . | . . . Parts Melted . | . . . Heat Transferred 333 | . 185 148 Parts Sabotaged . | . . . Parts Stolen . | . . . Parts Stripped . | . . . Power Chain Reactions . | . . . Missiles Intercepted . | . . . Alert | -11 -10 -10 ------- Run | Scr Mat Min Peak Influence 301 | 20 301 45 Initial 45 | . 13 45 Average 96 | 8 159 13 Maximum Alert Level 1 | . 1 . Low Security (%) 74 | 100 56 100 Level 1 25 | . 43 . Level 2 . | . . . Level 3 . | . . . Level 4 . | . . . Level 5 . | . . . High Security . | . . . Max Security . | . . . Squads Dispatched 1 | . 1 . Investigation . | . . . Extermination . | . . . Reinforcement 1 | . 1 . Assault . | . . . Garrison . | . . . Intercept . | . . . Searches Triggered . | . . . Construction Impeded . | . . . Haulers Reinforced . | . . . Active Scanning Responses . | . . . Cargo Convoy Interrupts . | . . . Stealth | -11 -10 -10 --------- Run | Scr Mat Min Distress Signals . | . . . Communications Jammed . | . . . Distress Signals . | . . . Times Spotted 28 | . 19 9 Peak Tracking Total 5 | . 4 5 Tactical Retreats 2 | . 1 1 Traps | -11 -10 -10 ------- Run | Scr Mat Min Traps Triggered . | . . . Indirectly . | . . . Trap Hack Attempts . | . . . Triggered . | . . . Disarmed . | . . . Reprogrammed . | . . . Reused . | . . . Traps Extracted . | . . . Installed . | . . . Triggered . | . . . Machines | -11 -10 -10 ---------- Run | Scr Mat Min Machines Disabled . | . . . Max in Single Turn . | . . . Machines Sabotaged . | . . . Garrisons Compromised . | . . . Overloaded Fab Kills . | . . . Hacking | -11 -10 -10 --------- Run | Scr Mat Min Machines Accessed 5 | . 5 . Terminals 4 | . 4 . Fabricators . | . . . Repair Stations . | . . . Recycling Units 1 | . 1 . Scanalyzers . | . . . Garrison Access . | . . . Total Hacks 14 | . 14 . Successful 10 | . 10 . Failed 3 | . 3 . Catastrophic 1 | . 1 . Database Lockouts 1 | . 1 . Manual 5 | . 5 . Terminals 11 | . 11 . Fabricators . | . . . Repair Stations . | . . . Recycling Units 3 | . 3 . Scanalyzers . | . . . Garrison Access . | . . . Terminal Hacks 8 | . 8 . Part Schematic 1 | . 1 . Robot Analysis 1 | . 1 . Prototype ID Bank 2 | . 2 . Branch Access Points 1 | . 1 . Locate Traps 1 | . 1 . Patrol Status 1 | . 1 . Hauler Manifests 1 | . 1 . Fabricator Hacks . | . . . Repair Station Hacks . | . . . Recycling Unit Hacks 1 | . 1 . Report Inventory 1 | . 1 . Scanalyzer . | . . . Garrison Access Hacks . | . . . Unauthorized Hacks 1 | . 1 . Terminals . | . . . Fabricators . | . . . Repair Stations . | . . . Recycling Units 1 | . 1 . Recyclers 1 | . 1 . Scanalyzers . | . . . Garrison Access . | . . . Data Cores Recovered . | . . . Used . | . . . Hacking Detections 5 | . 5 . Full Trace Events . | . . . Feedback Events . | . . . Feedback Blocked . | . . . Robot Schematics Acquired . | . . . Robots Built . | . . . Authchips . | . . . Time . | . . . Total Robot Build Rating . | . . . Part Schematics Acquired 1 | . 1 . Parts Built . | . . . Authchips . | . . . Time . | . . . Total Part Build Rating . | . . . Parts Repaired . | . . . Time . | . . . Parts Recycled . | . . . Recycled Matter . | . . . Retrieved Matter . | . . . Retrieved Components . | . . . Parts Scanalyzed . | . . . Part Schematics Acquired . | . . . Parts Damaged . | . . . Bothacking | -11 -10 -10 ------------ Run | Scr Mat Min Used RIF Installer . | . . . Robots Hacked . | . . . Non-combat . | . . . Combat . | . . . Robot Hacks Applied . | . . . Relay Couplers Released . | . . . Fabnet Peak Effective % . | . . . Robots Rewired . | . . . Allies Hacked . | . . . Hacks Repelled . | . . . Allies | -11 -10 -10 -------- Run | Scr Mat Min Total Allies . | . . . Largest Group . | . . . Highest-Rated Group . | . . . Highest-Rated Ally . | . . . Total Orders . | . . . Ally Attacks . | . . . Total Damage . | . . . Kills . | . . . Allies Corrupted . | . . . Allies Melted . | . . . Intel | -11 -10 -10 ------- Run | Scr Mat Min Robot Analysis Total 1 | . 1 . Derelict Logs Recovered 1 | . . 1 Drone Launches . | . . . Drone Recoveries . | . . . Exploration | -11 -10 -10 ------------- Run | Scr Mat Min Turns Passed 807 | 173 462 172 Spaces Moved 497 | 90 300 107 Core 15 | 15 . . Treads 34 | . . 34 Legs 407 | 75 300 32 Wheels 41 | . . 41 Hover . | . . . Flight . | . . . Fastest Speed 50 | 50 120 80 Average Speed 118 | 114 120 117 Slowest Speed 160 | 150 120 160 Overloaded Moves . | . . . Propulsion Burnouts . | . . . Robots Hopped . | . . . Cave-ins Triggered . | . . . Exploration Rate (%) 29 | 5 51 32 Regions Visited 2 Branch Regions 1 Pre-discovered Areas 1 | . . 1 Known Exits Taken 1 | . 1 . Unknown Exits Taken 1 | 1 . . Scrap Searched . | . . . Spaces Dug . | . . . Terrain Destroyed . | . . . Melee . | . . . Projectile . | . . . AOE . | . . . Terrain Rammed . | . . . Walls Destroyed . | . . . Machines Disabled . | . . . Actions | -11 -10 -10 --------- Run | Scr Mat Min Total 603 | 125 346 132 Wait 6 | . 4 2 Move 495 | 89 299 107 Hop . | . . . Pick Up 10 | 7 2 1 Fast Attach 10 | 8 1 1 Attach 5 | . 1 4 Detach 1 | 1 . . Swap 2 | 1 1 . Drop 3 | . 3 . Fire 71 | 19 35 17 Melee . | . . . Ram . | . . . Kick . | . . . Crush . | . . . Escape Stasis . | . . . Rewire . | . . . Trap . | . . . Miscellaneous . | . . . Route ------- -11/Scrapyard -10/Materials (discovered 2 exits: [*Mat] / *Min) -10/Mines History --------- Turn | Location | Event 20 | -11/Scrapyard | Discovered new exit (range 15) 174 | -11/Scrapyard | Entered Materials 265 | -10/Materials | Identified exit to Mines 301 | -10/Materials | Build established: Mutant 462 | -10/Materials | Central database locked down 516 | -10/Materials | Discovered new exit (range 15) 636 | -10/Materials | Entered Mines 637 | -10/Mines | Assembled infested the area 642 | -10/Mines | Assisted by a Guerilla fighting off Assembled 672 | -10/Mines | Core integrity fell below 50% 699 | -10/Mines | Core integrity fell below 20% 735 | -10/Mines | Lost 6 parts (1p2n1u2w) 790 | -10/Mines | Learned location of Zion (-6) 808 | -10/Mines | Destroyed by G-47 Trooper with Particle Gun Last Messages --------------- 00690_ as-11247 destroyed. 00690_ Med. Laser destroyed. 00692_ Imp. Terrain Scanner destroyed. 00702_ Aluminum Leg destroyed. 00708_ as-20428 destroyed. 00716_ as-89637 destroyed. 00718_ Acquired 14 matter. 00719_ Acquired 6 matter. 00751_ Acquired Armor Integrity Analyzer. 00755_ Acquired Flexi-carbon Leg. 00756_ Acquired 10 matter. 00762_ U-05 Engineer lays Concrete. 00765_ U-05 Engineer builds a Wall. 00765_ U-05 Engineer lays Concrete. 00772_ U-05 Engineer builds a Wall. 00780_ K-01 Serf collects debris. 00790_ Acquired derelict log, extracted data. World map updated: -6/Zion. 00799_ T-07 Excavator is excavating. 00808_ Critical hit (Burn: +37). Map ----- +----------------------------------------------------+ | ?????????? ?# ## # #?????# #??? ???????? | | ????????????#??# ## ??????# #??# ?????????? | | ???????????????#??# ?####?# ### ???????????? | | ???????????????#??# ## ## ## #????????????? | | ???????????????# ## #?????????????? | | ???????????????# #?????????????? | | ????????????????### ## ##????????????? | | ?????????????????## #?## #????????????? | | ????????????????## ! #### ##???????????? | | ???????????????## ## #???????????? | | ???????????????# / ## #?????????? | | ???????????????# ##?# #????????? | | ???????????????## ## ##???# #???????? | | ????????????????# ???# ####?????# ! #???????? | | ??????????????????????# #????????? #??????? | | ??????????????????????# #?????????? #?????? | | ??????????????????????# #?????????? #?????? | | ??????????????????????# ########???? #????? | | ??????????????????????# #???? #????? | | ??????????????????????# #????? ! #?????? | | ?????????????????????######### #??????????????? | | ?????????????????????# #??????????????? | | ?????????????????????# #??????????????? | | ?????????????????????#### #######??????????????? | | ????????????????????????# #????????????????????? | | ????????????????????????#@#????????????????????? | | ??????????????????????? ???????????????????? | | ????????????????????? """?????????????????? | | ????????????????????### """#????????????????? | | ??????????????????????# """#????????????????? | | ??????????????????????# g #????????????????? | | ??????????????????????#g """#????????????????? | | ??????????????????????T """#????????????????? | | ??????????????????????# """?????????????????? | | ??????????????????????# ??????????????????? | | ??????????????????????######???????????????????? | | ???????????????????????????????????????????????? | | ???????????????????????????????????????????????? | | ???????????????????????????????????????????????? | | ???????????????????????????????????????????????? | | ???????????????????????????????????????????????? | | ???????????????????????????????????????????????? | | ???????????????????????????????????????????????? | | ???????????????????????????????????????????????? | | ???????????????????????????????????????????????? | | ???????????????????????????????????????????????? | | | | | | | | | +----------------------------------------------------+ Best States ------------- Heat Dissipation 25 Energy Generation 10 Energy Capacity 125 Matter Stores 300 Matter Capacity 300 Sight Range 16 Terrain Scan Range 16 Terrain Scan Density 10 Evasion (%) 55 Armor Integrity Analysis 30 Recoil Reduction 1 Item Schematics ----------------- Lrg. Storage Unit | -10/Materials | Hacked Robot Schematics ------------------ None Fabricated ------------ Nothing Alien Tech Used ----------------- None Achievements -------------- None Challenges ------------ None Game ------ Seed DeuteriumPointyAmplifier Manual? 0 Play Time 00:10:18 Cumulative 190.1 hours Start 2022.04.25 @ 18:07:08 End 2022.04.25 @ 18:27:03 Sessions 1 Manual Loads 0 Difficulty Rogue Special Mode None Game No. 139 Rogue 116 Adventurer 6 Explorer 17 Win Type - Total 14 Types 8/0/2/1/0/1/1/1/0 Lore% 91 Gallery% 89 Achievement% 67 Wizard Run 0 Options --------- ASCII 0 Keyboard 0 Movement Numpad Keybinds 0 Fullscreen 1 Font 12/Fuzzy Map View 83x54 Tactical HUD 1 Map Filters NONE Filters NONE Steam 1 RUN: ee90d0d9-97f8-44c9-9de0-ed46ebf4e57d